bitfinex/quotes_SOLUSD_20240711
["timestamp","ask_amount","ask_price","bid_price","bid_amount"]
[1720702156807,18.84953895,144.92,144.86,6.9028]
[1720702157005,18.84953895,144.92,144.87,6.9026]
[1720702157231,18.84953895,144.92,144.85,17.2589]
[1720702157820,18.84953895,144.92,144.85,24.1624]
[1720702158206,25.74993895,144.92,144.83,6.9042]
[1720702158500,18.84953895,144.92,144.84,6.9041]
[1720702158922,0.17,144.91,144.84,6.9041]
[1720702159199,45.17,144.91,144.85,6.9035]
[1720702159408,45.17,144.91,144.84,24.1639]
[1720702159627,52.071,144.91,144.82,6.905]
[1720702159829,45.17,144.91,144.82,6.9049]
[1720702160007,45.17,144.91,144.84,6.9038]
[1720702160328,45.17,144.91,144.86,6.9032]
[1720702160831,18.84953895,144.92,144.82,34.5248]
[1720702160998,18.84953895,144.92,144.89,6.9017]
[1720702161509,18.84953895,144.92,144.88,24.1568]
[1720702161815,18.84953895,144.92,144.88,17.2547]
[1720702162522,18.84953895,144.92,144.82,34.5248]
[1720702163049,6.9011,144.91,144.83,17.2608]
[1720702163228,6.9014,144.9,144.81,6.9054]
[1720702163527,18.84953895,144.92,144.83,6.9046]
[1720702163728,11.02039052,144.91,144.85,6.9036]
[1720702163922,56.19031895,144.9,144.85,6.9036]
[1720702164236,56.19031895,144.9,144.86,6.9031]
[1720702164237,0.17,144.9,144.86,6.9031]
[1720702164528,0.17,144.91,144.87,6.9026]
[1720702164734,0.17,144.91,144.88,6.9022]
[1720702164937,0.17,144.91,144.87,17.2563]
[1720702165229,0.17,144.91,144.81,34.526]
[1720702165520,18.84953895,144.92,144.81,34.526]
[1720702165725,18.84953895,144.92,144.9,6.9011]
[1720702165919,18.84953895,144.92,144.84,34.5187]
[1720702165920,18.84953895,144.92,144.89,6.9016]
[1720702166117,18.84953895,144.92,144.9,6.9011]
[1720702166328,18.84953895,144.92,144.9,17.2528]
[1720702166618,18.84953895,144.92,144.9,24.1536]
[1720702167127,18.84953895,144.92,144.91,6.9008]
[1720702167333,8.5930966,145.02,144.93,6.8997]
[1720702167543,11.01714577,145.01,144.89,15.7111]
[1720702167719,11.01714577,145.0,144.89,15.7111]
[1720702167913,0.8488966,145.02,144.94,24.1468]
[1720702168108,7.7444966,145.02,144.94,17.2479]
[1720702168433,0.8488966,145.02,144.94,17.2479]
[1720702168632,0.8488966,145.02,144.95,6.8988]
[1720702168830,0.8488966,145.02,144.92,55.2706]
[1720702169137,0.8488966,145.02,144.98,17.243]
[1720702169540,0.8488966,145.02,144.95,17.2469]
[1720702169717,0.8488966,145.02,144.97,6.8978]
[1720702169920,0.8488966,145.02,144.95,17.2469]
[1720702170115,0.8488966,145.02,144.97,24.1424]
[1720702170314,0.8488966,145.02,144.98,6.8974]
[1720702170611,0.8488966,145.02,144.99,6.8967]
[1720702170812,0.8488966,145.02,144.98,6.8973]
[1720702171433,0.8488966,145.02,144.99,17.2418]
[1720702171830,0.8488966,145.02,145.01,6.896]
[1720702172064,0.8488966,145.02,145.0,6.8964]
[1720702172616,0.8488966,145.02,144.99,17.2418]
[1720702172820,0.8488966,145.02,144.98,6.8971]
[1720702173023,0.8488966,145.02,144.97,22.8874]
[1720702173339,0.8488966,145.02,144.97,6.8979]
[1720702173517,0.8488966,145.02,144.93,33.0024]
[1720702173717,0.17,145.01,144.96,6.8984]
[1720702173932,0.17,145.01,144.96,6.8983]
[1720702174147,0.17,145.01,144.97,6.8977]
[1720702174321,0.17,145.01,144.95,17.2469]
[1720702174516,0.17,145.01,144.98,6.8971]
[1720702174932,0.17,145.01,144.97,17.2439]
[1720702175137,0.17,145.01,144.97,24.1418]
[1720702175328,0.8488966,145.02,144.99,6.8969]
[1720702175633,0.8488966,145.02,144.98,6.8973]
[1720702175948,0.8488966,145.02,144.98,0.54256393]
[1720702176134,0.8488966,145.02,144.97,24.1417]
[1720702176331,0.8488966,145.02,144.98,6.8974]
[1720702176532,0.8488966,145.02,144.97,24.1417]
[1720702176729,0.17,145.01,144.97,24.1417]
[1720702176949,0.17,145.01,144.97,17.2439]
[1720702177339,0.17,145.01,144.96,6.8981]
[1720702177540,0.17,145.01,144.97,6.8979]
[1720702177745,0.17,145.01,144.93,15.7528]
[1720702178047,0.17,145.01,144.93,33.002]
[1720702178247,0.17,145.01,144.95,17.2466]
[1720702178450,0.17,145.01,144.97,17.2445]
[1720702178636,0.17,145.01,144.97,24.1422]
[1720702179836,0.17,145.01,144.93,17.2487]
[1720702180154,0.17,145.01,144.95,6.8988]
[1720702180448,0.17,145.01,144.95,24.1456]
[1720702180664,0.17,145.01,144.96,6.8984]
[1720702180839,0.17,145.01,144.97,17.2442]
[1720702181043,0.17,145.01,144.97,24.142]
[1720702181246,0.17,145.01,144.97,17.2442]
[1720702181752,0.17,145.01,144.98,1.03896086]
[1720702182250,0.17,145.01,144.94,24.1464]
[1720702182458,0.17,145.01,144.94,17.2475]
[1720702182750,0.17,145.01,144.91,421.1033]
[1720702182957,7.0664,145.01,144.93,6.8998]
[1720702183154,45.0,145.0,144.94,6.8993]
[1720702183352,0.17,144.99,144.94,6.8992]
[1720702183765,0.17,144.99,144.95,6.8988]
[1720702183938,0.17,144.99,144.94,6.8993]
[1720702184355,0.17,144.99,144.94,6.8992]
[1720702184545,0.17,144.99,144.93,17.2494]
[1720702184739,0.8488966,145.02,144.98,6.8972]
[1720702185167,0.8488966,145.02,144.99,6.8967]
[1720702185361,0.8488966,145.02,144.98,6.8973]
[1720702185864,0.8488966,145.02,144.99,6.8969]
[1720702186219,0.8488966,145.02,145.0,6.8964]
[1720702186663,0.8488966,145.02,145.01,6.896]
[1720702187441,0.8488966,145.02,144.99,24.1387]
[1720702187643,0.8488966,145.02,144.91,22.8593]
[1720702187951,0.8488966,145.02,144.93,17.2491]
[1720702188152,0.8488966,145.02,144.94,6.899]
[1720702188548,45.8488966,145.02,144.94,6.899]
[1720702188749,45.8488966,145.02,144.93,24.1489]
[1720702188750,0.17,145.01,144.93,24.1489]
[1720702188957,0.17,145.01,144.94,6.8992]
[1720702189459,0.17,145.01,144.93,17.2491]
[1720702189654,0.17,145.01,144.91,22.8593]
[1720702189981,7.0661,145.01,144.92,17.2506]
[1720702190162,45.0,145.0,144.93,6.8997]
[1720702190368,0.17,144.99,144.92,17.2506]
[1720702190578,0.17,144.99,144.91,22.8593]
[1720702190579,0.17,144.99,144.94,17.2481]
[1720702191160,0.17,144.99,144.94,6.8992]
[1720702191349,0.17,144.99,144.91,22.8593]
[1720702191558,0.17,144.99,144.94,6.899]
[1720702191879,0.17,144.99,144.93,24.1488]
[1720702192453,45.17,145.0,144.93,24.1488]
[1720702192679,52.0667,145.0,144.91,29.7598]
[1720702192882,45.17,145.0,144.93,6.8997]
[1720702193079,45.0,145.01,144.95,6.8988]
[1720702193466,45.0,145.01,144.96,1.37680886]
[1720702193768,0.8488966,145.02,144.95,1.37690384]
[1720702193955,7.7445966,145.02,144.94,6.8993]
[1720702194364,0.17,145.01,144.93,17.249]
[1720702194609,7.0661,145.01,144.93,17.249]
[1720702194771,6.8965,145.0,144.92,6.8999]
[1720702194979,52.067,144.99,144.91,29.7599]
[1720702195158,45.17,144.99,144.91,29.7599]
[1720702195354,52.067,144.99,144.9,24.1534]
[1720702195555,45.17,144.99,144.9,17.2523]
[1720702196053,45.17,144.99,144.92,6.8999]
[1720702196272,0.17,144.99,144.93,6.8998]
[1720702196870,0.17,144.99,144.93,6.8997]
[1720702197064,45.0,145.0,144.94,6.8991]
[1720702197264,0.8488966,145.02,144.94,17.2482]
[1720702197470,0.8488966,145.02,144.96,6.898]
[1720702197779,0.8488966,145.02,144.96,17.2456]
[1720702198081,0.8488966,145.02,144.97,8.16951203]
[1720702198867,0.8488966,145.02,144.98,17.2434]
[1720702199082,0.8488966,145.02,144.99,8.16863659]
[1720702199589,0.8488966,145.02,145.0,6.8965]
[1720702199886,0.8488966,145.02,144.99,6.8969]
[1720702200072,0.8488966,145.02,145.0,6.8964]
[1720702200274,0.8488966,145.02,144.99,6.8969]
[1720702200576,0.8488966,145.02,144.95,21.2404]
[1720702201266,0.8488966,145.02,144.99,24.1391]
[1720702201580,0.17,145.01,145.0,0.46478312]
[1720702201779,0.17,145.01,145.0,8.27555298]
[1720702202080,0.8488966,145.02,145.0,8.27555298]
[1720702202385,0.8488966,145.02,145.01,6.896]
[1720702202678,0.8488966,145.02,145.0,1.37905298]
[1720702202882,0.8488966,145.02,145.01,6.896]
[1720702203083,0.8488966,145.02,145.01,8.2703438]
[1720702203383,0.8488966,145.02,145.01,1.3743438]
[1720702203593,0.8488966,145.02,144.99,17.2423]
[1720702203594,0.8488966,145.02,145.0,6.8964]
[1720702203754,0.8488966,145.02,144.99,17.2423]
[1720702204076,0.8488966,145.02,144.99,6.8967]
[1720702204382,0.17,145.01,144.98,24.1407]
[1720702204774,0.17,145.01,144.99,6.8969]
[1720702204959,0.17,145.01,144.98,17.2434]
[1720702205164,0.17,145.01,144.99,1.3758422]
[1720702205559,0.17,145.01,144.99,6.897]
[1720702205887,0.17,145.01,144.98,24.1407]
[1720702206491,0.8488966,145.02,145.0,6.8962]
[1720702206779,0.8488966,145.02,145.01,1.37883658]
[1720702207003,0.8488966,145.02,145.01,6.896]
[1720702207283,0.8488966,145.02,145.01,8.27478003]
[1720702207485,0.8488966,145.02,145.0,24.1375]
[1720702207790,0.8488966,145.02,145.01,0.48722548]
[1720702208092,0.8488966,145.02,144.95,21.2404]
[1720702208394,0.8488966,145.02,144.96,6.8983]
[1720702208597,0.17,145.01,144.96,6.8981]
[1720702208781,0.17,145.01,144.94,17.2476]
[1720702209164,0.17,145.01,144.95,1.37935087]
[1720702209391,0.17,145.01,144.95,8.27805087]
[1720702209891,0.17,145.01,144.95,1.37935087]
[1720702210183,7.0661,145.01,144.94,17.2476]
[1720702210402,45.0,145.0,144.93,6.8998]
[1720702210567,0.17,144.99,144.93,24.1484]
[1720702211084,0.17,144.99,144.93,17.2489]
[1720702211658,0.17,144.99,144.91,22.3634]
[1720702211659,0.8488966,145.02,144.92,55.27]
[1720702211864,0.8488966,145.02,144.98,6.897]
[1720702212167,0.8488966,145.02,144.97,24.1419]
[1720702212376,0.8488966,145.02,144.98,6.8972]
[1720702212569,0.8488966,145.02,144.99,6.8969]
[1720702212884,0.8488966,145.02,145.0,6.8963]
[1720702213085,0.8488966,145.02,145.01,1.37342724]
[1720702213969,0.8488966,145.02,145.01,8.26942724]
[1720702214291,0.8488966,145.02,145.01,1.37342724]
[1720702214586,0.8488966,145.02,145.0,6.8965]
[1720702215265,0.8488966,145.02,144.99,17.242]
[1720702215469,0.8488966,145.02,144.99,23.6345]
[1720702215658,0.8488966,145.02,145.01,6.896]
[1720702216470,0.8488966,145.02,145.01,8.24813938]
[1720702217768,0.8488966,145.02,145.0,1.3557444]
[1720702218374,0.8488966,145.02,144.96,404.5454]
[1720702218668,0.17,145.01,144.97,6.8979]
[1720702219578,0.17,145.01,144.96,411.4437]
[1720702219889,0.17,145.01,144.96,411.4434]
[1720702220097,0.17,145.01,144.97,6.8978]
[1720702220284,0.17,145.01,144.96,387.3]
[1720702221103,0.17,145.01,144.96,394.1983]
[1720702222091,0.8488966,145.02,145.0,6.8965]
[1720702222675,0.8488966,145.02,144.96,387.3]
[1720702222994,0.8488966,145.02,144.96,394.1984]
[1720702223379,0.17,145.01,144.96,394.1984]
[1720702223601,0.17,145.01,144.96,387.3]
[1720702223781,0.17,145.01,144.96,394.1982]
[1720702223981,0.17,145.01,144.96,387.3]
[1720702224872,0.17,145.01,144.96,394.1984]
[1720702225073,0.17,145.01,144.96,387.3]
[1720702225681,0.17,145.01,144.96,394.1983]
[1720702226291,0.17,145.01,144.97,6.8979]
[1720702226590,0.17,145.01,144.96,394.1982]
[1720702227274,0.17,145.01,144.97,17.2447]
[1720702227575,0.17,145.01,144.96,387.3]
[1720702227775,7.0663,145.01,144.96,387.3]
[1720702227995,51.8966,145.0,144.96,387.3]
[1720702228292,0.17,144.99,144.96,387.3]
[1720702229178,0.17,144.99,144.96,394.1983]
[1720702229584,0.8488966,145.02,145.0,17.2405]
[1720702229843,0.8488966,145.02,145.01,8.27071401]
[1720702230029,0.8488966,145.02,145.01,1.37471401]
[1720702230184,0.8488966,145.02,145.0,24.137]
[1720702230185,0.8488966,145.02,144.98,6.897]
[1720702230391,0.8488966,145.02,144.98,6.8972]
[1720702230587,0.8488966,145.02,144.96,387.3]
[1720702230993,0.8488966,145.02,144.96,394.1983]
[1720702231265,0.8488966,145.02,144.96,387.3]
[1720702231266,6.896,145.01,144.96,387.3]
[1720702231400,45.0,145.0,144.96,387.3]
[1720702231897,0.17,144.99,144.96,387.3]
[1720702232803,0.17,144.99,144.92,17.2501]
[1720702232991,0.17,144.99,144.86,22.6438]
[1720702233500,0.17,144.99,144.9,6.901]
[1720702233704,7.0671,144.99,144.9,6.901]
[1720702234017,45.0,144.98,144.9,6.901]
[1720702234181,0.17,144.97,144.91,6.9008]
[1720702234384,0.8486,145.0,144.93,6.8998]
[1720702234596,0.8486,145.0,144.94,6.8993]
[1720702234810,0.8486,145.0,144.93,6.8995]
[1720702235082,0.8488966,145.02,144.95,6.8985]
[1720702235279,0.8488966,145.02,144.96,17.2455]
[1720702235592,0.8488966,145.02,144.98,6.8974]
[1720702236101,0.8488966,145.02,144.95,6.8984]
[1720702236507,0.8488966,145.02,144.96,6.8983]
[1720702237108,0.8488966,145.02,144.95,6.8988]
[1720702237289,0.8488966,145.02,144.95,17.2467]
[1720702237483,0.8488966,145.02,144.94,6.8991]
[1720702237684,0.8488966,145.02,144.92,17.2502]
[1720702237884,0.17,145.01,144.93,6.8997]
[1720702238091,7.0661,145.01,144.92,24.1504]
[1720702238303,45.0,145.0,144.93,6.8997]
[1720702238498,0.17,144.99,144.93,6.8997]
[1720702238817,6.8975,144.98,144.9,22.398]
[1720702239016,6.8985,144.96,144.87,6.9026]
[1720702239389,6.8985,144.96,144.86,39.1115]
[1720702239390,45.17,144.95,144.88,6.9021]
[1720702239590,45.0,144.94,144.89,6.9017]
[1720702239802,0.17,144.95,144.89,6.9017]
[1720702239803,0.17,144.93,144.89,6.9017]
[1720702239999,0.17,144.95,144.88,24.1571]
[1720702240223,0.17,144.95,144.9,6.9013]
[1720702240521,0.17,144.96,144.9,6.9012]
[1720702240901,0.17,144.96,144.89,6.9017]
[1720702241616,0.17,144.96,144.9,17.2527]
[1720702241824,0.8486,145.0,144.94,6.8994]
[1720702242014,19.56947072,145.02,144.95,6.8988]
[1720702242226,19.56947072,145.02,144.96,1.37940441]
[1720702242402,6.8963,145.01,144.93,1.37448863]
[1720702242602,19.56947072,145.02,144.93,1.37448863]
[1720702242806,26.46507072,145.02,144.93,8.27418863]
[1720702243004,19.56947072,145.02,144.94,6.8993]
[1720702243218,19.56947072,145.02,144.95,1.37429897]
[1720702243516,19.56947072,145.02,144.98,6.8974]
[1720702243517,0.8488966,145.02,144.98,6.8974]
[1720702243728,0.8488966,145.02,144.99,8.27593046]
[1720702243908,0.8488966,145.02,144.99,6.8969]
[1720702244115,0.8488966,145.02,144.98,17.2432]
[1720702244534,0.8488966,145.02,144.98,18.62219656]
[1720702244817,0.8488966,145.02,144.99,1.37890145]
[1720702245413,0.8488966,145.02,145.0,6.8963]
[1720702245610,0.8488966,145.02,144.99,17.2424]
[1720702245812,0.8488966,145.02,144.99,24.1393]
[1720702246016,0.8488966,145.02,144.99,17.2424]
[1720702246197,0.8488966,145.02,144.99,24.1394]
[1720702246413,0.8488966,145.02,145.0,8.27542244]
[1720702247124,0.8488966,145.02,144.96,6.8981]
[1720702247335,0.17,145.01,144.96,0.61321406]
[1720702247506,0.17,145.01,144.95,17.2467]
[1720702247705,0.17,145.01,144.96,1.37424583]
[1720702247937,0.17,145.01,144.96,8.27264583]
[1720702248114,0.17,145.01,144.97,6.8979]
[1720702248316,0.17,145.01,144.98,1.37461994]
[1720702248514,0.17,145.01,144.95,1.37542635]
[1720702248716,0.17,145.01,144.96,18.62083146]
[1720702249016,0.17,145.01,144.97,6.8978]
[1720702249330,0.17,145.01,144.96,18.62083146]
[1720702249331,0.17,145.01,144.98,8.27254173]
[1720702249633,0.17,145.01,144.99,1.37504688]
[1720702249817,0.17,145.01,144.97,8.27394187]
[1720702250200,0.17,145.01,144.99,6.8969]
[1720702250400,0.8488966,145.02,145.0,1.3743469]
[1720702250808,0.8488966,145.02,145.01,46.70437661]
[1720702251008,11.2,145.13,145.07,6.893]
[1720702251221,11.2,145.13,145.06,6.8934]
[1720702251409,11.2,145.13,145.07,1.37500767]
[1720702251607,11.2,145.13,145.03,6.8948]
[1720702251915,11.2,145.13,145.04,1.37848056]
[1720702252130,6.891,145.12,145.02,6.8955]
[1720702252429,6.8909,145.12,145.03,1.37887079]
[1720702252645,6.8919,145.1,145.02,1.37806926]
[1720702252801,1.6972,145.09,144.97,22.0747]
[1720702253013,1.6972,145.09,144.92,6.393]
[1720702253310,6.8972,144.99,144.9,17.2521]
[1720702253512,45.17,144.98,144.9,17.2521]
[1720702253709,45.17,144.98,144.85,22.7515]
[1720702253935,45.17,144.98,144.84,6.9039]
[1720702254109,0.17,144.98,144.84,6.9039]
[1720702254513,19.92325338,144.97,144.84,6.9039]
[1720702254732,45.17,144.96,144.84,6.9039]
[1720702254935,6.8989,144.95,144.85,6.9036]
[1720702255108,45.17,144.94,144.85,6.9036]
[1720702255535,45.17,144.94,144.82,17.2622]
[1720702255833,45.17,144.94,144.86,6.9032]
[1720702256029,45.17,144.94,144.85,17.2585]
[1720702256237,45.17,144.94,144.81,39.5093]
[1720702256414,70.45,144.94,144.81,23.4002]
[1720702256810,70.45,144.94,144.84,6.904]
[1720702257035,45.17,144.94,144.81,23.4002]
[1720702257329,45.17,144.94,144.81,30.3057]
[1720702257545,45.17,144.94,144.82,6.9049]
[1720702257720,45.17,144.94,144.76,402.745]
[1720702257721,45.17,144.94,144.77,17.2678]
[1720702257922,18.18662909,144.93,144.77,17.2678]
[1720702258124,45.0,144.92,144.87,6.9024]
[1720702258334,0.17,144.91,144.84,17.2599]
[1720702258533,0.17,144.91,144.8,17.2649]
[1720702258729,0.17,144.91,144.81,0.54570221]
[1720702258915,0.17,144.92,144.85,6.9034]
[1720702259114,0.17,144.92,144.86,8.28346354]
[1720702259320,2.78387407,144.97,144.86,25.54086354]
[1720702259321,6.8983,144.97,144.86,25.54086354]
[1720702259523,6.8985,144.96,144.87,1.38029092]
[1720702259726,10.1812252,144.99,144.86,17.2573]
[1720702259917,28.39574023,144.99,144.87,1.37962397]
[1720702260133,6.8989,144.95,144.82,17.262]
[1720702260321,28.39574023,144.99,144.83,1.37933819]
[1720702260527,6.8977,144.98,144.87,6.9023]
[1720702260726,28.39574023,144.99,144.88,1.37886216]
[1720702260930,25.69957313,144.99,144.9,6.9011]
[1720702261135,18.21451503,144.99,144.9,1.37996721]
[1720702261338,18.21451503,144.99,144.87,1.38002149]
[1720702261537,18.21451503,144.99,144.88,6.9018]
[1720702261740,18.21451503,144.99,144.91,6.9008]
[1720702262044,18.21451503,144.99,144.89,24.1549]
[1720702262230,18.21451503,144.99,144.86,22.5439]
[1720702262231,21.79067355,144.99,144.86,22.5439]
[1720702262431,6.8989,144.96,144.86,22.5439]
[1720702262621,3.57615852,144.98,144.85,17.2588]
[1720702262622,7.15231704,144.98,144.85,17.2588]
[1720702262823,3.90889958,144.96,144.85,17.2588]
[1720702263039,3.90889958,144.96,144.82,6.0639]
[1720702263348,3.57615852,144.98,144.91,6.9007]
[1720702263645,3.57615852,144.98,144.92,6.9002]
[1720702264023,3.57615852,144.98,144.92,8.27718217]
[1720702264326,3.57615852,144.98,144.87,17.2561]
[1720702264847,3.57615852,144.98,144.84,387.3]
[1720702265067,3.57615852,144.98,144.84,34.5205]
[1720702265275,3.57615852,144.98,144.91,6.9007]
[1720702265420,0.17,144.97,144.9,6.9009]
[1720702265617,3.57615852,144.98,144.89,17.2537]
[1720702265836,3.57615852,144.98,144.91,6.9007]
[1720702266041,3.90889958,145.0,144.91,6.9007]
[1720702266240,3.90889958,145.0,144.92,17.2506]
[1720702267052,3.57615852,145.01,144.92,17.2506]
[1720702267624,3.57615852,145.01,144.92,24.1506]
[1720702267844,3.57615852,145.01,144.92,17.2506]
[1720702268266,3.57615852,145.01,144.93,6.8998]
[1720702268559,11.12194515,145.02,144.95,17.247]
[1720702268725,6.8943,145.05,144.95,24.1456]
[1720702269132,14.68856003,145.06,144.95,17.247]
[1720702269324,14.68856003,145.06,144.97,6.8979]
[1720702269542,14.68856003,145.06,144.97,6.8976]
[1720702269749,14.68856003,145.06,144.91,39.7936]
[1720702270063,14.68856003,145.06,144.93,6.8995]
[1720702270233,14.68856003,145.06,144.94,6.8993]
[1720702270432,6.8941,145.05,144.95,6.8989]
[1720702270648,6.8941,145.05,144.91,39.7936]
[1720702270649,6.8948,145.04,144.91,39.7936]
[1720702270844,6.895,145.04,144.94,6.8993]
[1720702271167,52.0651,145.03,144.93,6.8998]
[1720702271357,0.17,145.03,144.98,6.8973]
[1720702271523,21.58226003,145.06,144.96,6.898]
[1720702271737,6.8945,145.05,144.94,24.1474]
[1720702272030,6.8958,145.02,144.92,6.9003]
[1720702272256,14.3798581,145.04,144.91,22.5423]
[1720702272430,6.8956,145.02,144.92,6.9002]
[1720702272632,7.4850581,145.04,144.9,24.1538]
[1720702272927,6.8971,144.99,144.9,17.2528]
[1720702273133,45.17,144.98,144.92,6.9002]
[1720702273332,45.0,144.98,144.92,6.9002]
[1720702273656,0.17,144.97,144.9,17.2528]
[1720702273829,0.17,144.97,144.87,6.4005]
[1720702274029,1.8672,144.97,144.86,17.2575]
[1720702274233,6.899,144.95,144.86,17.2575]
[1720702274446,45.17,144.94,144.83,6.9042]
[1720702274756,6.9023,144.88,144.78,17.2669]
[1720702275065,6.9023,144.88,144.78,24.1737]
[1720702275066,0.17,144.87,144.78,24.1737]
[1720702275240,52.0727,144.87,144.78,17.2669]
[1720702275435,72.10266518,144.87,144.78,17.2669]
[1720702275635,72.10266518,144.87,144.73,6.0946]
[1720702275636,65.19996518,144.87,144.75,6.908]
[1720702275962,6.9032,144.86,144.75,6.908]
[1720702276135,45.17,144.85,144.74,17.2716]
[1720702276327,20.08857631,144.86,144.76,6.9075]
[1720702276532,45.17,144.85,144.77,6.9075]
[1720702276840,19.15910155,144.84,144.74,17.2716]
[1720702277050,45.17,144.83,144.78,6.907]
[1720702277553,45.17,144.83,144.74,17.2716]
[1720702277757,0.17,144.83,144.74,17.2716]
[1720702277936,45.0,144.82,144.74,17.2716]
[1720702278133,0.17,144.81,144.74,24.1803]
[1720702278332,0.17,144.81,144.77,17.2684]
[1720702278636,18.92496997,144.84,144.77,17.2684]
[1720702278852,18.92496997,144.84,144.73,17.2726]
[1720702279351,18.92496997,144.84,144.75,6.9083]
[1720702279654,18.92496997,144.84,144.77,6.9075]
[1720702279836,45.17,144.83,144.78,6.907]
[1720702280233,45.17,144.83,144.76,17.2695]
[1720702280234,45.0,144.83,144.76,24.1771]
[1720702280433,45.0,144.83,144.76,17.2695]
[1720702280750,45.0,144.83,144.77,6.9074]
[1720702280951,18.92496997,144.84,144.78,6.9068]
[1720702281137,18.92496997,144.84,144.79,17.266]
[1720702281342,27.04162603,144.89,144.81,6.9054]
[1720702281551,27.04162603,144.89,144.8,6.906]
[1720702281731,27.04162603,144.89,144.72,478.35]
[1720702281931,33.94372603,144.89,144.78,6.9069]
[1720702282139,18.37957617,144.88,144.78,6.9069]
[1720702282365,25.5792235,144.88,144.77,6.907]
[1720702282542,18.37957617,144.88,144.82,6.9048]
[1720702282856,18.37957617,144.88,144.81,17.2635]
[1720702283233,18.37957617,144.88,144.78,6.9066]
[1720702283436,18.37957617,144.88,144.81,6.9055]
[1720702283738,18.37957617,144.88,144.8,17.2649]
[1720702283947,18.37957617,144.88,144.83,17.2611]
[1720702284162,18.50333489,144.97,144.83,17.2611]
[1720702284349,7.19512186,144.96,144.83,17.2611]
[1720702284552,7.19512186,144.96,144.86,17.2577]
[1720702285367,7.19512186,144.96,144.87,6.9027]
[1720702285560,7.19512186,144.96,144.88,6.9022]
[1720702285763,7.19512186,144.96,144.86,24.1604]
[1720702286139,7.19512186,144.96,144.81,33.4261]
[1720702286858,7.19512186,144.96,144.82,6.9047]
[1720702287173,45.0,144.95,144.84,6.9041]
[1720702287350,0.17,144.94,144.84,6.9041]
[1720702287560,0.17,144.94,144.82,6.9048]
[1720702287864,0.17,144.94,144.81,17.2633]
[1720702287865,6.9014,144.9,144.81,17.2633]
[1720702288058,45.17,144.89,144.81,17.2633]
[1720702288247,45.17,144.89,144.83,6.9046]
[1720702288442,45.17,144.89,144.82,6.905]
[1720702288645,45.17,144.89,144.81,17.2633]
[1720702288862,45.17,144.89,144.81,24.1685]
[1720702289060,45.17,144.89,144.81,17.2633]
[1720702289272,0.17,144.89,144.81,17.2633]
[1720702289572,0.17,144.89,144.84,6.9037]
[1720702289871,0.17,144.89,144.85,6.9036]
[1720702290260,7.19512186,144.96,144.79,34.5305]
[1720702290464,7.19512186,144.96,144.83,34.5211]
[1720702290657,7.19512186,144.96,144.9,17.2532]
[1720702290861,7.19512186,144.96,144.86,17.2569]
[1720702291178,14.09352186,144.96,144.86,24.1596]
[1720702291555,7.19512186,144.96,144.82,17.2618]
[1720702291761,7.19512186,144.96,144.85,6.9036]
[1720702291762,6.8991,144.95,144.85,6.9036]
[1720702291951,6.8989,144.95,144.85,6.9036]
[1720702292274,7.19512186,144.96,144.85,6.9036]
[1720702292462,52.0689,144.95,144.85,6.9036]
[1720702292655,6.8996,144.94,144.84,24.1633]
[1720702292861,45.17,144.93,144.84,17.2592]
[1720702293656,45.17,144.93,144.87,6.9026]
[1720702293875,45.17,144.93,144.86,17.257]
[1720702294080,7.19512186,144.96,144.87,6.9026]
[1720702294375,18.50333489,144.97,144.89,6.9017]
[1720702294675,18.50333489,144.97,144.86,17.257]